[Event "Titled Tuesday Blitz February 07 Early 2023"]
[White "Makarian, Rudik"]
[Black "Fiorito, Joaquin"]
[WhiteFideId "44105681"]
[BlackFideId "180173"]
[WhiteElo "2545"]
[BlackElo "2405"]
[Result "1-0"]
[Round "05"]
[TimeControl "180+2"]
[Date "2023.02.07"]
[WhiteClock "0:00:20"]
[BlackClock "0:00:01"]

1. d4 {[%clk 0:02:59]}  Nf6 {[%clk 0:02:59]} 2. c4 {[%clk 0:03:00]}  e6 {[%clk 0:02:58]} 3. Nf3 {[%clk 0:03:00]}  d5 {[%clk 0:02:58]} 4. Nc3 {[%clk 0:03:00]}  Bb4 {[%clk 0:02:56]} 5. Qa4+ {[%clk 0:02:59]}  Nc6 {[%clk 0:02:56]} 6. a3 {[%clk 0:02:59]}  Bxc3+ {[%clk 0:02:49]} 7. bxc3 {[%clk 0:03:00]}  O-O {[%clk 0:02:44]} 8. Bg5 {[%clk 0:02:59]}  h6 {[%clk 0:02:44]} 9. Bh4 {[%clk 0:03:00]}  Bd7 {[%clk 0:02:38]} 10. Qc2 {[%clk 0:02:58]}  g5 {[%clk 0:02:32]} 11. Nxg5 {[%clk 0:02:35]}  hxg5 {[%clk 0:02:30]} 12. Bxg5 {[%clk 0:02:36]}  Kg7 {[%clk 0:02:25]} 13. e3 {[%clk 0:02:28]}  Rh8 {[%clk 0:02:21]} 14. h4 {[%clk 0:02:23]}  Ne7 {[%clk 0:02:13]} 15. Bd3 {[%clk 0:02:10]}  Qf8 {[%clk 0:01:59]} 16. cxd5 {[%clk 0:02:05]}  exd5 {[%clk 0:01:56]} 17. f3 {[%clk 0:02:05]}  Ng6 {[%clk 0:01:52]} 18. c4 {[%clk 0:01:56]}  Re8 {[%clk 0:01:43]} 19. Kf2 {[%clk 0:01:30]}  Nh7 {[%clk 0:01:21]} 20. cxd5 {[%clk 0:01:27]}  Nxg5 {[%clk 0:01:20]} 21. hxg5 {[%clk 0:01:28]}  Qd6 {[%clk 0:01:18]} 22. Bxg6 {[%clk 0:01:23]}  fxg6 {[%clk 0:01:18]} 23. e4 {[%clk 0:01:23]}  Qf4 {[%clk 0:01:02]} 24. Qc1 {[%clk 0:01:18]}  Rxe4 {[%clk 0:00:36]} 25. Rxh8 {[%clk 0:01:05]}  Kxh8 {[%clk 0:00:36]} 26. Qxf4 {[%clk 0:00:59]}  Rxf4 {[%clk 0:00:37]} 27. Ke3 {[%clk 0:00:57]}  Rf5 {[%clk 0:00:34]} 28. Rc1 {[%clk 0:00:58]}  c6 {[%clk 0:00:29]} 29. dxc6 {[%clk 0:00:58]}  Bxc6 {[%clk 0:00:30]} 30. f4 {[%clk 0:00:57]}  Ra5 {[%clk 0:00:29]} 31. Rc3 {[%clk 0:00:44]}  Kg7 {[%clk 0:00:29]} 32. g4 {[%clk 0:00:44]}  Kf7 {[%clk 0:00:30]} 33. Kf2 {[%clk 0:00:40]}  Ke6 {[%clk 0:00:30]} 34. Rh3 {[%clk 0:00:39]}  Be4 {[%clk 0:00:22]} 35. Rh6 {[%clk 0:00:26]}  Rxa3 {[%clk 0:00:22]} 36. f5+ {[%clk 0:00:26]}  Kd5 {[%clk 0:00:16]} 37. fxg6 {[%clk 0:00:24]}  Rf3+ {[%clk 0:00:12]} 38. Ke2 {[%clk 0:00:24]}  Rf8 {[%clk 0:00:12]} 39. Ke3 {[%clk 0:00:20]}  Rg8 {[%clk 0:00:10]} 40. Rh7 {[%clk 0:00:21]}  Rxg6 {[%clk 0:00:06]} 41. Rxb7 {[%clk 0:00:19]}  Rxg5 {[%clk 0:00:03]} 42. Rb5+ {[%clk 0:00:19]}  Kd6 {[%clk 0:00:01]} 43. Rxg5 {[%clk 0:00:20]}  Bb1 {[%clk 0:00:01]} 44. Ra5 {[%clk 0:00:20]} 1-0


[Site "https://www.chess.com"]

[Event "Titled Tuesday Blitz February 07 Early 2023"]
[White "Tristan, Leonardo"]
[Black "Bjerre, Jonas Buhl"]
[WhiteFideId "113816"]
[BlackFideId "1444948"]
[WhiteElo "2545"]
[BlackElo "2602"]
[Result "1-0"]
[Round "05"]
[TimeControl "180+2"]
[Date "2023.02.07"]
[WhiteClock "0:00:04"]
[BlackClock "0:00:05"]

1. d4 {[%clk 0:03:00]}  Nf6 {[%clk 0:02:59]} 2. Nf3 {[%clk 0:03:01]}  g6 {[%clk 0:02:58]} 3. Bf4 {[%clk 0:03:01]}  Bg7 {[%clk 0:02:58]} 4. e3 {[%clk 0:03:01]}  b6 {[%clk 0:02:58]} 5. Be2 {[%clk 0:03:01]}  Bb7 {[%clk 0:02:58]} 6. O-O {[%clk 0:03:00]}  O-O {[%clk 0:02:58]} 7. a4 {[%clk 0:03:00]}  a6 {[%clk 0:02:58]} 8. Nbd2 {[%clk 0:03:00]}  Ne4 {[%clk 0:02:55]} 9. Nxe4 {[%clk 0:02:59]}  Bxe4 {[%clk 0:02:54]} 10. Nd2 {[%clk 0:02:52]}  Bb7 {[%clk 0:02:54]} 11. a5 {[%clk 0:02:51]}  b5 {[%clk 0:02:51]} 12. c4 {[%clk 0:02:51]}  bxc4 {[%clk 0:02:43]} 13. Nxc4 {[%clk 0:02:52]}  Nc6 {[%clk 0:02:39]} 14. Qb3 {[%clk 0:02:48]}  Rb8 {[%clk 0:02:32]} 15. Rfc1 {[%clk 0:02:45]}  d6 {[%clk 0:02:22]} 16. Qc3 {[%clk 0:02:20]}  Ba8 {[%clk 0:02:09]} 17. Bg3 {[%clk 0:01:56]}  Nb4 {[%clk 0:02:05]} 18. Nb6 {[%clk 0:01:39]}  cxb6 {[%clk 0:01:27]} 19. Qxb4 {[%clk 0:01:39]}  b5 {[%clk 0:01:24]} 20. Rc3 {[%clk 0:01:30]}  Qd7 {[%clk 0:01:14]} 21. Rac1 {[%clk 0:01:30]}  Rbc8 {[%clk 0:01:09]} 22. Qa3 {[%clk 0:01:09]}  Qf5 {[%clk 0:00:55]} 23. h3 {[%clk 0:00:52]}  h5 {[%clk 0:00:54]} 24. Bf1 {[%clk 0:00:46]}  Qd7 {[%clk 0:00:51]} 25. b4 {[%clk 0:00:38]}  Qb7 {[%clk 0:00:48]} 26. R1c2 {[%clk 0:00:35]}  e5 {[%clk 0:00:41]} 27. dxe5 {[%clk 0:00:34]}  dxe5 {[%clk 0:00:41]} 28. Qc1 {[%clk 0:00:34]}  Rxc3 {[%clk 0:00:40]} 29. Rxc3 {[%clk 0:00:35]}  Qe4 {[%clk 0:00:40]} 30. Rc8 {[%clk 0:00:27]}  Qxb4 {[%clk 0:00:35]} 31. Qc7 {[%clk 0:00:18]}  Bd5 {[%clk 0:00:16]} 32. Rxf8+ {[%clk 0:00:06]}  Qxf8 {[%clk 0:00:17]} 33. Bxe5 {[%clk 0:00:06]}  Qa8 {[%clk 0:00:15]} 34. Bxg7 {[%clk 0:00:04]}  Kxg7 {[%clk 0:00:16]} 35. Qe5+ {[%clk 0:00:04]}  Kg8 {[%clk 0:00:16]} 36. Qd6 {[%clk 0:00:04]}  Qb7 {[%clk 0:00:15]} 37. f3 {[%clk 0:00:04]}  Be6 {[%clk 0:00:14]} 38. e4 {[%clk 0:00:04]}  Kg7 {[%clk 0:00:14]} 39. g4 {[%clk 0:00:02]}  hxg4 {[%clk 0:00:13]} 40. hxg4 {[%clk 0:00:03]}  Qc8 {[%clk 0:00:13]} 41. g5 {[%clk 0:00:03]}  Qc1 {[%clk 0:00:12]} 42. Qe5+ {[%clk 0:00:03]}  Kh7 {[%clk 0:00:11]} 43. Qh2+ {[%clk 0:00:03]}  Kg8 {[%clk 0:00:12]} 44. Qb8+ {[%clk 0:00:03]}  Qc8 {[%clk 0:00:12]} 45. Qe5 {[%clk 0:00:03]}  b4 {[%clk 0:00:12]} 46. Qd6 {[%clk 0:00:02]}  b3 {[%clk 0:00:12]} 47. Qb6 {[%clk 0:00:01]}  Qc2 {[%clk 0:00:10]} 48. Bxa6 {[%clk 0:00:01]}  b2 {[%clk 0:00:10]} 49. Qb8+ {[%clk 0:00:01]}  Bc8 {[%clk 0:00:07]} 50. Bd3 {[%clk 0:00:01]}  Qxd3 {[%clk 0:00:06]} 51. Qxb2 {[%clk 0:00:01]}  Qd7 {[%clk 0:00:04]} 52. Qe5 {[%clk 0:00:01]}  Qb7 {[%clk 0:00:04]} 53. Kg2 {[%clk 0:00:01]}  Be6 {[%clk 0:00:03]} 54. Kg3 {[%clk 0:00:01]}  Qa6 {[%clk 0:00:04]} 55. Kf4 {[%clk 0:00:01]}  Bc4 {[%clk 0:00:04]} 56. Qc7 {[%clk 0:00:01]}  Be6 {[%clk 0:00:03]} 57. Qd8+ {[%clk 0:00:02]}  Kg7 {[%clk 0:00:03]} 58. Qc7 {[%clk 0:00:03]}  Kh7 {[%clk 0:00:03]} 59. Qc3 {[%clk 0:00:02]}  Qe2 {[%clk 0:00:03]} 60. Ke5 {[%clk 0:00:02]}  Qh2+ {[%clk 0:00:03]} 61. Kd4 {[%clk 0:00:02]}  Qf4 {[%clk 0:00:03]} 62. Qe3 {[%clk 0:00:02]}  Qd6+ {[%clk 0:00:03]} 63. Kc3 {[%clk 0:00:03]}  Qa3+ {[%clk 0:00:03]} 64. Kd4 {[%clk 0:00:03]}  Qxa5 {[%clk 0:00:04]} 65. Qc1 {[%clk 0:00:02]}  Qc7 {[%clk 0:00:03]} 66. Qxc7 {[%clk 0:00:01]}  Kg7 {[%clk 0:00:04]} 67. Qe5+ {[%clk 0:00:02]}  Kg8 {[%clk 0:00:04]} 68. Qf6 {[%clk 0:00:03]}  Kf8 {[%clk 0:00:04]} 69. Ke5 {[%clk 0:00:04]}  Ke8 {[%clk 0:00:05]} 70. Qxe6+ {[%clk 0:00:04]} 1-0


[Site "https://www.chess.com"]

[Event "Titled Tuesday Blitz February 07 Early 2023"]
[White "Averjanov, Alexey"]
[Black "Boruchovsky, Avital"]
[WhiteFideId "14109867"]
[BlackFideId "2800055"]
[WhiteElo "2399"]
[BlackElo "2539"]
[Result "1-0"]
[Round "05"]
[TimeControl "180+2"]
[Date "2023.02.07"]
[WhiteClock "0:00:27"]
[BlackClock "0:00:46"]

1. d4 {[%clk 0:03:00]}  Nf6 {[%clk 0:02:55]} 2. c4 {[%clk 0:03:00]}  d6 {[%clk 0:02:55]} 3. Nf3 {[%clk 0:03:00]}  Nc6 {[%clk 0:02:53]} 4. Nc3 {[%clk 0:02:58]}  e5 {[%clk 0:02:52]} 5. d5 {[%clk 0:02:53]}  Ne7 {[%clk 0:02:52]} 6. e4 {[%clk 0:02:54]}  g6 {[%clk 0:02:49]} 7. g3 {[%clk 0:02:48]}  Bg7 {[%clk 0:02:48]} 8. Bg2 {[%clk 0:02:48]}  Nd7 {[%clk 0:02:45]} 9. O-O {[%clk 0:02:48]}  O-O {[%clk 0:02:45]} 10. Ne1 {[%clk 0:02:47]}  f5 {[%clk 0:02:43]} 11. f4 {[%clk 0:02:47]}  exf4 {[%clk 0:02:42]} 12. Bxf4 {[%clk 0:02:45]}  Ne5 {[%clk 0:02:37]} 13. Qe2 {[%clk 0:02:41]}  fxe4 {[%clk 0:02:36]} 14. Nxe4 {[%clk 0:02:39]}  Bg4 {[%clk 0:02:36]} 15. Qc2 {[%clk 0:02:33]}  Nf5 {[%clk 0:02:36]} 16. Kh1 {[%clk 0:02:07]}  Nd4 {[%clk 0:02:27]} 17. Qc3 {[%clk 0:01:57]}  Ne2 {[%clk 0:02:17]} 18. Qc2 {[%clk 0:01:57]}  Nxf4 {[%clk 0:02:00]} 19. gxf4 {[%clk 0:01:52]}  Qh4 {[%clk 0:01:58]} 20. fxe5 {[%clk 0:01:32]}  Rxf1+ {[%clk 0:01:59]} 21. Bxf1 {[%clk 0:01:32]}  Bxe5 {[%clk 0:02:00]} 22. Qf2 {[%clk 0:01:19]}  Qh6 {[%clk 0:01:38]} 23. Qg2 {[%clk 0:00:44]}  Rf8 {[%clk 0:01:33]} 24. Bd3 {[%clk 0:00:34]}  Bh3 {[%clk 0:01:10]} 25. Qg5 {[%clk 0:00:32]}  Qg7 {[%clk 0:00:55]} 26. Ng2 {[%clk 0:00:29]}  Rf2 {[%clk 0:00:46]} 27. Nxf2 {[%clk 0:00:27]} 1-0


[Site "https://www.chess.com"]

[Event "Titled Tuesday Blitz February 07 Early 2023"]
[White "Suder, Jakub"]
[Black "Pakleza, Zbigniew"]
[WhiteFideId "1195310"]
[BlackFideId "1119290"]
[WhiteElo "2244"]
[BlackElo "2494"]
[Result "0-1"]
[Round "05"]
[TimeControl "180+2"]
[Date "2023.02.07"]
[WhiteClock "0:00:02"]
[BlackClock "0:00:05"]

1. d4 {[%clk 0:03:00]}  d6 {[%clk 0:02:58]} 2. Nf3 {[%clk 0:02:59]}  Bg4 {[%clk 0:02:58]} 3. Nbd2 {[%clk 0:02:54]}  Nf6 {[%clk 0:02:58]} 4. c3 {[%clk 0:02:51]}  e6 {[%clk 0:02:56]} 5. e4 {[%clk 0:02:49]}  Be7 {[%clk 0:02:54]} 6. Bd3 {[%clk 0:02:44]}  d5 {[%clk 0:02:53]} 7. e5 {[%clk 0:02:44]}  Nfd7 {[%clk 0:02:53]} 8. Qc2 {[%clk 0:02:34]}  h6 {[%clk 0:02:22]} 9. Ng1 {[%clk 0:02:29]}  g6 {[%clk 0:02:14]} 10. Nf1 {[%clk 0:02:15]}  Bf5 {[%clk 0:02:06]} 11. Bxf5 {[%clk 0:02:13]}  gxf5 {[%clk 0:02:06]} 12. b4 {[%clk 0:02:09]}  a5 {[%clk 0:02:02]} 13. b5 {[%clk 0:02:08]}  c5 {[%clk 0:02:02]} 14. bxc6 {[%clk 0:02:08]}  Nxc6 {[%clk 0:02:00]} 15. Ne2 {[%clk 0:02:04]}  Qc7 {[%clk 0:02:00]} 16. Qd3 {[%clk 0:02:02]}  a4 {[%clk 0:01:56]} 17. h3 {[%clk 0:01:55]}  h5 {[%clk 0:01:49]} 18. h4 {[%clk 0:01:51]}  Nb6 {[%clk 0:01:39]} 19. Bg5 {[%clk 0:01:51]}  Nc4 {[%clk 0:01:38]} 20. Nfg3 {[%clk 0:01:27]}  Bxg5 {[%clk 0:01:09]} 21. hxg5 {[%clk 0:01:26]}  h4 {[%clk 0:01:10]} 22. Nf4 {[%clk 0:01:17]}  O-O-O {[%clk 0:00:45]} 23. Nge2 {[%clk 0:01:16]}  Kb8 {[%clk 0:00:24]} 24. g6 {[%clk 0:01:15]}  Rdg8 {[%clk 0:00:22]} 25. f3 {[%clk 0:00:55]}  Qe7 {[%clk 0:00:21]} 26. gxf7 {[%clk 0:00:54]}  Qxf7 {[%clk 0:00:22]} 27. Kf2 {[%clk 0:00:54]}  Rh7 {[%clk 0:00:20]} 28. Rh2 {[%clk 0:00:54]}  Rgh8 {[%clk 0:00:20]} 29. Rah1 {[%clk 0:00:54]}  Kc7 {[%clk 0:00:19]} 30. Qd1 {[%clk 0:00:53]}  b5 {[%clk 0:00:18]} 31. Qb1 {[%clk 0:00:52]}  Kb6 {[%clk 0:00:18]} 32. Nd3 {[%clk 0:00:45]}  Qe7 {[%clk 0:00:14]} 33. Qc1 {[%clk 0:00:43]}  Qa3 {[%clk 0:00:11]} 34. Qxa3 {[%clk 0:00:41]}  Nxa3 {[%clk 0:00:12]} 35. Nc5 {[%clk 0:00:40]}  Rh6 {[%clk 0:00:13]} 36. Nf4 {[%clk 0:00:39]}  b4 {[%clk 0:00:05]} 37. Ncxe6 {[%clk 0:00:31]}  bxc3 {[%clk 0:00:05]} 38. Nxd5+ {[%clk 0:00:31]}  Ka5 {[%clk 0:00:05]} 39. Nc5 {[%clk 0:00:29]}  c2 {[%clk 0:00:02]} 40. Rc1 {[%clk 0:00:29]}  Nxd4 {[%clk 0:00:02]} 41. Rhh1 {[%clk 0:00:27]}  h3 {[%clk 0:00:02]} 42. gxh3 {[%clk 0:00:26]}  Rxh3 {[%clk 0:00:03]} 43. Rxh3 {[%clk 0:00:15]}  Rxh3 {[%clk 0:00:04]} 44. Kg2 {[%clk 0:00:15]}  Rxf3 {[%clk 0:00:04]} 45. e6 {[%clk 0:00:12]}  Nxe6 {[%clk 0:00:03]} 46. Nxe6 {[%clk 0:00:11]}  Rd3 {[%clk 0:00:04]} 47. Ndf4 {[%clk 0:00:09]}  Rd1 {[%clk 0:00:03]} 48. Ne2 {[%clk 0:00:09]}  Kb4 {[%clk 0:00:03]} 49. N6d4 {[%clk 0:00:08]}  Kc4 {[%clk 0:00:02]} 50. Nxc2 {[%clk 0:00:07]}  Rxc1 {[%clk 0:00:03]} 51. Nxa3+ {[%clk 0:00:07]}  Kb4 {[%clk 0:00:03]} 52. Nxc1 {[%clk 0:00:07]}  Kxa3 {[%clk 0:00:04]} 53. Nd3 {[%clk 0:00:04]}  Kxa2 {[%clk 0:00:03]} 54. Kf3 {[%clk 0:00:02]}  a3 {[%clk 0:00:03]} 55. Ke3 {[%clk 0:00:02]}  Kb3 {[%clk 0:00:03]} 56. Nc1+ {[%clk 0:00:01]}  Kc3 {[%clk 0:00:04]} 57. Na2+ {[%clk 0:00:01]}  Kc2 {[%clk 0:00:04]} 58. Nb4+ {[%clk 0:00:01]}  Kb3 {[%clk 0:00:05]} 59. Nd3 {[%clk 0:00:02]}  Kc3 {[%clk 0:00:05]} 60. Nc1 {[%clk 0:00:02]}  Kc2 {[%clk 0:00:06]} 61. Nd3 {[%clk 0:00:02]}  f4+ {[%clk 0:00:04]} 62. Ke4 {[%clk 0:00:02]}  f3 {[%clk 0:00:04]} 63. Nb4+ {[%clk 0:00:02]}  Kb3 {[%clk 0:00:04]} 64. Nd3 {[%clk 0:00:02]}  f2 {[%clk 0:00:05]} 0-1


[Site "https://www.chess.com"]

[Event "Titled Tuesday Blitz February 07 Early 2023"]
[White "Horobetz, Graham"]
[Black "Borges Feria, Yasel"]
[WhiteFideId "2047322"]
[BlackFideId "3504921"]
[WhiteElo "2140"]
[BlackElo "2439"]
[Result "0-1"]
[Round "05"]
[TimeControl "180+2"]
[Date "2023.02.07"]
[WhiteClock "0:00:38"]
[BlackClock "0:00:45"]

1. e4 {[%clk 0:03:00]}  e5 {[%clk 0:02:54]} 2. Nf3 {[%clk 0:03:00]}  Nc6 {[%clk 0:02:54]} 3. Bb5 {[%clk 0:03:01]}  a6 {[%clk 0:02:54]} 4. Ba4 {[%clk 0:03:00]}  Nf6 {[%clk 0:02:54]} 5. O-O {[%clk 0:03:01]}  Be7 {[%clk 0:02:53]} 6. Re1 {[%clk 0:03:00]}  b5 {[%clk 0:02:54]} 7. Bb3 {[%clk 0:03:00]}  d6 {[%clk 0:02:54]} 8. c3 {[%clk 0:03:00]}  O-O {[%clk 0:02:54]} 9. a4 {[%clk 0:03:00]}  Bg4 {[%clk 0:02:45]} 10. h3 {[%clk 0:02:55]}  Bh5 {[%clk 0:02:44]} 11. d3 {[%clk 0:02:55]}  Re8 {[%clk 0:02:26]} 12. Nbd2 {[%clk 0:02:53]}  b4 {[%clk 0:02:20]} 13. a5 {[%clk 0:02:52]}  bxc3 {[%clk 0:02:19]} 14. bxc3 {[%clk 0:02:51]}  Na7 {[%clk 0:02:09]} 15. c4 {[%clk 0:02:37]}  Nd7 {[%clk 0:02:03]} 16. Ba4 {[%clk 0:02:35]}  c6 {[%clk 0:01:58]} 17. g4 {[%clk 0:02:28]}  Bg6 {[%clk 0:01:58]} 18. Nf1 {[%clk 0:02:29]}  Nc5 {[%clk 0:01:57]} 19. Be3 {[%clk 0:02:00]}  Qc7 {[%clk 0:01:41]} 20. Ng3 {[%clk 0:01:45]}  Rab8 {[%clk 0:01:36]} 21. Bxc5 {[%clk 0:01:35]}  dxc5 {[%clk 0:01:35]} 22. h4 {[%clk 0:01:36]}  f6 {[%clk 0:01:23]} 23. h5 {[%clk 0:01:29]}  Bf7 {[%clk 0:01:23]} 24. Nf5 {[%clk 0:01:14]}  Bf8 {[%clk 0:01:24]} 25. Qc1 {[%clk 0:01:04]}  Red8 {[%clk 0:01:18]} 26. Bc2 {[%clk 0:00:57]}  Nc8 {[%clk 0:00:59]} 27. Kg2 {[%clk 0:00:56]}  h6 {[%clk 0:00:56]} 28. N3h4 {[%clk 0:00:52]}  Nd6 {[%clk 0:00:52]} 29. Nxd6 {[%clk 0:00:52]}  Bxd6 {[%clk 0:00:53]} 30. Nf5 {[%clk 0:00:52]}  Bf8 {[%clk 0:00:54]} 31. Qa3 {[%clk 0:00:48]}  Rb4 {[%clk 0:00:54]} 32. Reb1 {[%clk 0:00:45]}  Rdb8 {[%clk 0:00:52]} 33. Qc3 {[%clk 0:00:43]}  R8b7 {[%clk 0:00:46]} 34. f3 {[%clk 0:00:41]}  Qb8 {[%clk 0:00:46]} 35. Kg3 {[%clk 0:00:38]}  Rxb1 {[%clk 0:00:45]} 0-1


[Site "https://www.chess.com"]

[Event "Titled Tuesday Blitz February 07 Early 2023"]
[White "tuschessCM1"]
[Black "Galchenko, Matvey"]
[BlackFideId "24175480"]
[WhiteElo "2638"]
[BlackElo "2438"]
[Result "0-1"]
[Round "05"]
[TimeControl "180+2"]
[Date "2023.02.07"]
[WhiteClock "0:00:07"]
[BlackClock "0:00:09"]

1. c4 {[%clk 0:02:48]}  e6 {[%clk 0:02:59]} 2. Nf3 {[%clk 0:02:24]}  d5 {[%clk 0:02:59]} 3. e3 {[%clk 0:02:21]}  Nf6 {[%clk 0:02:53]} 4. b3 {[%clk 0:02:21]}  dxc4 {[%clk 0:02:40]} 5. bxc4 {[%clk 0:02:20]}  c5 {[%clk 0:02:41]} 6. Nc3 {[%clk 0:02:17]}  b6 {[%clk 0:02:39]} 7. Bb2 {[%clk 0:02:07]}  Bb7 {[%clk 0:02:39]} 8. Be2 {[%clk 0:01:46]}  Be7 {[%clk 0:02:39]} 9. O-O {[%clk 0:01:38]}  O-O {[%clk 0:02:38]} 10. Qc2 {[%clk 0:01:35]}  Nc6 {[%clk 0:02:38]} 11. Rfd1 {[%clk 0:01:30]}  Qc8 {[%clk 0:02:18]} 12. a3 {[%clk 0:01:20]}  Rd8 {[%clk 0:02:17]} 13. h3 {[%clk 0:01:06]}  Na5 {[%clk 0:02:03]} 14. Ne5 {[%clk 0:01:01]}  Ne8 {[%clk 0:01:55]} 15. f4 {[%clk 0:00:54]}  Nd6 {[%clk 0:01:53]} 16. d3 {[%clk 0:00:53]}  a6 {[%clk 0:01:36]} 17. a4 {[%clk 0:00:49]}  Nf5 {[%clk 0:01:24]} 18. Bc1 {[%clk 0:00:45]}  Nc6 {[%clk 0:01:19]} 19. Nxc6 {[%clk 0:00:37]}  Bxc6 {[%clk 0:01:19]} 20. Ne4 {[%clk 0:00:31]}  Qc7 {[%clk 0:01:06]} 21. Bf3 {[%clk 0:00:28]}  Nh4 {[%clk 0:01:04]} 22. Bb2 {[%clk 0:00:24]}  f6 {[%clk 0:00:35]} 23. Qf2 {[%clk 0:00:20]}  Nxf3+ {[%clk 0:00:34]} 24. gxf3 {[%clk 0:00:21]}  b5 {[%clk 0:00:30]} 25. axb5 {[%clk 0:00:20]}  axb5 {[%clk 0:00:31]} 26. Rxa8 {[%clk 0:00:20]}  Rxa8 {[%clk 0:00:32]} 27. cxb5 {[%clk 0:00:20]}  Bxb5 {[%clk 0:00:32]} 28. Qg3 {[%clk 0:00:18]}  Kh8 {[%clk 0:00:31]} 29. Qg4 {[%clk 0:00:16]}  Bd7 {[%clk 0:00:23]} 30. Qh5 {[%clk 0:00:15]}  Qb6 {[%clk 0:00:18]} 31. Bc3 {[%clk 0:00:11]}  c4 {[%clk 0:00:15]} 32. dxc4 {[%clk 0:00:07]}  Qxe3+ {[%clk 0:00:14]} 33. Kg2 {[%clk 0:00:08]}  Bc6 {[%clk 0:00:10]} 34. Re1 {[%clk 0:00:06]}  Qxf4 {[%clk 0:00:09]} 35. Bd2 {[%clk 0:00:06]}  Ra2 {[%clk 0:00:07]} 36. Re2 {[%clk 0:00:06]}  Qb8 {[%clk 0:00:07]} 37. Qf7 {[%clk 0:00:06]}  Qf8 {[%clk 0:00:07]} 38. Qxf8+ {[%clk 0:00:05]}  Bxf8 {[%clk 0:00:08]} 39. Kf2 {[%clk 0:00:05]}  e5 {[%clk 0:00:08]} 40. Be3 {[%clk 0:00:05]}  Ra4 {[%clk 0:00:07]} 41. Rc2 {[%clk 0:00:04]}  Kg8 {[%clk 0:00:07]} 42. Ke2 {[%clk 0:00:03]}  Kf7 {[%clk 0:00:07]} 43. Kd3 {[%clk 0:00:04]}  Ra3+ {[%clk 0:00:07]} 44. Rc3 {[%clk 0:00:04]}  Ra1 {[%clk 0:00:07]} 45. Rc2 {[%clk 0:00:03]}  Rd1+ {[%clk 0:00:06]} 46. Ke2 {[%clk 0:00:03]}  Rh1 {[%clk 0:00:07]} 47. Nf2 {[%clk 0:00:04]}  Ra1 {[%clk 0:00:06]} 48. Nd3 {[%clk 0:00:03]}  Ra8 {[%clk 0:00:05]} 49. Bc5 {[%clk 0:00:03]}  e4 {[%clk 0:00:05]} 50. fxe4 {[%clk 0:00:03]}  Bxe4 {[%clk 0:00:05]} 51. Bxf8 {[%clk 0:00:04]}  Rxf8 {[%clk 0:00:05]} 52. Ke3 {[%clk 0:00:04]}  Bg6 {[%clk 0:00:05]} 53. Rc3 {[%clk 0:00:04]}  Re8+ {[%clk 0:00:05]} 54. Kf2 {[%clk 0:00:05]}  Rc8 {[%clk 0:00:05]} 55. Nf4 {[%clk 0:00:05]}  Be4 {[%clk 0:00:06]} 56. Ke3 {[%clk 0:00:05]}  f5 {[%clk 0:00:06]} 57. Kd4 {[%clk 0:00:06]}  g5 {[%clk 0:00:05]} 58. Ne2 {[%clk 0:00:06]}  Bb7 {[%clk 0:00:04]} 59. Rb3 {[%clk 0:00:06]}  Bc6 {[%clk 0:00:05]} 60. Ra3 {[%clk 0:00:06]}  f4 {[%clk 0:00:05]} 61. Ra5 {[%clk 0:00:06]}  Kg6 {[%clk 0:00:06]} 62. h4 {[%clk 0:00:06]}  h6 {[%clk 0:00:06]} 63. Re5 {[%clk 0:00:06]}  Bf3 {[%clk 0:00:06]} 64. hxg5 {[%clk 0:00:06]}  hxg5 {[%clk 0:00:07]} 65. Nc3 {[%clk 0:00:06]}  g4 {[%clk 0:00:07]} 66. Ne4 {[%clk 0:00:06]}  Rd8+ {[%clk 0:00:07]} 67. Kc5 {[%clk 0:00:06]}  g3 {[%clk 0:00:07]} 68. Rg5+ {[%clk 0:00:05]}  Kh6 {[%clk 0:00:07]} 69. Re5 {[%clk 0:00:03]}  Bxe4 {[%clk 0:00:07]} 70. Rxe4 {[%clk 0:00:04]}  g2 {[%clk 0:00:08]} 71. Re1 {[%clk 0:00:05]}  f3 {[%clk 0:00:09]} 72. Rg1 {[%clk 0:00:06]}  f2 {[%clk 0:00:08]} 73. Rxg2 {[%clk 0:00:06]}  f1=Q {[%clk 0:00:08]} 74. Rh2+ {[%clk 0:00:07]}  Kg5 {[%clk 0:00:09]} 0-1


[Site "https://www.chess.com"]

[Event "Titled Tuesday Blitz February 07 Early 2023"]
[White "Acor, Corey"]
[Black "Panesso Rivera, Henry"]
[WhiteFideId "2024861"]
[BlackFideId "4402707"]
[WhiteElo "2216"]
[BlackElo "2342"]
[Result "0-1"]
[Round "05"]
[TimeControl "180+2"]
[Date "2023.02.07"]
[WhiteClock "0:00:03"]
[BlackClock "0:00:06"]

1. e4 {[%clk 0:03:00]}  d6 {[%clk 0:02:58]} 2. Nc3 {[%clk 0:02:59]}  Nf6 {[%clk 0:02:58]} 3. g3 {[%clk 0:02:59]}  c5 {[%clk 0:02:56]} 4. Bg2 {[%clk 0:02:59]}  Nc6 {[%clk 0:02:56]} 5. d3 {[%clk 0:03:00]}  g6 {[%clk 0:02:56]} 6. h3 {[%clk 0:02:58]}  Bg7 {[%clk 0:02:56]} 7. Be3 {[%clk 0:02:59]}  e5 {[%clk 0:02:56]} 8. f4 {[%clk 0:02:59]}  Nd4 {[%clk 0:02:56]} 9. Nf3 {[%clk 0:02:55]}  Nh5 {[%clk 0:02:46]} 10. Bxd4 {[%clk 0:02:26]}  cxd4 {[%clk 0:02:39]} 11. Ne2 {[%clk 0:02:27]}  Bh6 {[%clk 0:02:29]} 12. fxe5 {[%clk 0:02:22]}  dxe5 {[%clk 0:02:29]} 13. O-O {[%clk 0:02:17]}  f6 {[%clk 0:02:25]} 14. Kh2 {[%clk 0:02:04]}  Be3 {[%clk 0:02:16]} 15. c3 {[%clk 0:02:01]}  dxc3 {[%clk 0:01:39]} 16. Nxc3 {[%clk 0:01:56]}  Be6 {[%clk 0:01:35]} 17. Qe2 {[%clk 0:01:28]}  Bd4 {[%clk 0:01:09]} 18. Nd5 {[%clk 0:01:11]}  Bc5 {[%clk 0:00:45]} 19. Rac1 {[%clk 0:01:03]}  Bd6 {[%clk 0:00:44]} 20. Nh4 {[%clk 0:00:51]}  O-O {[%clk 0:00:41]} 21. Nf5 {[%clk 0:00:49]}  Bxd5 {[%clk 0:00:29]} 22. exd5 {[%clk 0:00:44]}  Kh8 {[%clk 0:00:18]} 23. Qg4 {[%clk 0:00:24]}  Ng7 {[%clk 0:00:18]} 24. Ne3 {[%clk 0:00:16]}  f5 {[%clk 0:00:16]} 25. Qa4 {[%clk 0:00:15]}  f4 {[%clk 0:00:17]} 26. Ng4 {[%clk 0:00:10]}  h5 {[%clk 0:00:17]} 27. Nh6 {[%clk 0:00:05]}  Qg5 {[%clk 0:00:13]} 28. gxf4 {[%clk 0:00:03]}  exf4 {[%clk 0:00:13]} 29. Bf3 {[%clk 0:00:03]}  Qxh6 {[%clk 0:00:13]} 30. Rg1 {[%clk 0:00:03]}  g5 {[%clk 0:00:13]} 31. Qd4 {[%clk 0:00:03]}  Rae8 {[%clk 0:00:11]} 32. Rcf1 {[%clk 0:00:02]}  Re3 {[%clk 0:00:10]} 33. Be4 {[%clk 0:00:02]}  Be5 {[%clk 0:00:10]} 34. Qxe3 {[%clk 0:00:02]}  fxe3+ {[%clk 0:00:09]} 35. Kh1 {[%clk 0:00:03]}  Rxf1 {[%clk 0:00:09]} 36. Rxf1 {[%clk 0:00:03]}  Bf4 {[%clk 0:00:09]} 37. Rc1 {[%clk 0:00:03]}  Ne8 {[%clk 0:00:05]} 38. Rc8 {[%clk 0:00:03]}  Qf8 {[%clk 0:00:05]} 39. Kg2 {[%clk 0:00:01]}  e2 {[%clk 0:00:05]} 40. Kf2 {[%clk 0:00:02]}  e1=Q+ {[%clk 0:00:04]} 41. Kxe1 {[%clk 0:00:03]}  Be3 {[%clk 0:00:05]} 42. Kd1 {[%clk 0:00:02]}  Qf1+ {[%clk 0:00:05]} 43. Kc2 {[%clk 0:00:03]}  Qc1+ {[%clk 0:00:05]} 44. Kb3 {[%clk 0:00:03]}  Qxc8 {[%clk 0:00:06]} 45. Bf5 {[%clk 0:00:03]}  Qxf5 {[%clk 0:00:06]} 0-1


[Site "https://www.chess.com"]